Cogmind - Beta 16.1 @@@ ROGUE MODE // 2026.04.19 @ 10:15:14 Player: Sharded of Serpulo Result: Destroyed self with Grenade Launcher Performance ------------- Evolutions (0) 0 Regions Visited (2) 400 Robots Destroyed (22) 110 Value Destroyed (541) 541 Prototype IDs (0) 0 Alien Tech Used (0) 0 Bonus (-69) -69 TOTAL SCORE: 982 Bonus ------- Friendly Fire -69 Cogmind --------- Core Integrity 0/250 Matter 226/300 Energy 125/125 System Corruption 1% Temperature Cool (0) Movement Treading (320) Ox2 Location -10/Subcaves Parts ------- > --- POWER (1) -------- Light Ion Engine > --- PROPULSION (2) --- Light Treads Light Treads > --- UTILITY (2) ------ Huge Storage Unit Light Armor Plating > --- WEAPON (2) ------- Grenade Launcher Mini Grenade Launcher > --- INVENTORY (25) --- Subdweller Monowheel Large Storage Unit Propulsion Shielding Medium Laser Small Laser Particle Gun Light Assault Rifle Mini Grenade Launcher Mini Grenade Launcher Mini Grenade Launcher Peak State ------------ > --- POWER ------------ Ion Engine > --- PROPULSION ------- Light Treads Light Treads > --- UTILITY ---------- Small Storage Unit Signal Interpreter > --- WEAPON ----------- Particle Gun Mini Grenade Launcher > --- INVENTORY -------- Light Ion Engine Medium Laser Particle Gun Light Assault Rifle Mini Grenade Launcher Mini Grenade Launcher Mini Grenade Launcher Mining Laser [Rating: 10] Favorites ----------- Power Light Ion Engine Engine Light Ion Engine Propulsion Light Treads Treads Light Treads Utility Huge Storage Unit Storage Huge Storage Unit Processor Signal Interpreter Protection Light Armor Plating Weapon Grenade Launcher Energy Gun Particle Gun Ballistic Gun Light Assault Rifle Launcher Grenade Launcher Special Weapon Mining Laser Build | -11 -10 -10 ------- Run | Yrd Mat Sub Slots Evolved . | . . . Power . | . . . Propulsion . | . . . Utility . | . . . Weapon . | . . . Parts Attached 19 | 6 11 2 Power 2 | 1 1 . Engine 2 | 1 1 . Core . | . . . Reactor . | . . . Propulsion 3 | 2 1 . Treads 3 | 2 1 . Leg . | . . . Wheel . | . . . Hover . | . . . Flight . | . . . Utility 5 | 1 3 1 Device . | . . . Storage 3 | 1 2 . Processor 1 | . 1 . Hackware . | . . . Protection 1 | . . 1 Artifact . | . . . Weapon 9 | 2 6 1 Energy Gun 4 | 2 2 . Energy Cannon . | . . . Ballistic Gun 1 | . 1 . Ballistic Cannon . | . . . Launcher 3 | . 2 1 Special Weapon 1 | . 1 . Impact Weapon . | . . . Slashing Weapon . | . . . Piercing Weapon . | . . . Special Melee Weapon . | . . . Unidentified Prototypes . | . . . Parts Lost 2 | . 2 . Power 1 | . 1 . Propulsion 1 | . 1 . Utility . | . . . Weapon . | . . . Highest Loss Streak 2 | . 2 . To Critical Strikes . | . . . Average Backups 8 | 1 7 9 Power . | . . . Propulsion . | . . . Utility 1 | . 1 2 Weapon 6 | . 5 7 Tool/Special . | . . . Unused Backups 5 | . . 5 Power . | . . . Propulsion 1 | . . 1 Utility . | . . . Weapon 4 | . . 4 Tool/Special . | . . . Average Slot Usage (%) 98 | . 98 99 Engine 14 | . 14 14 Treads 28 | . 28 28 Storage 14 | . 14 14 Processor 5 | . 12 . Protection 7 | . . 13 Energy Gun 7 | . 15 . Ballistic Gun 3 | . 7 . Launcher 17 | . 4 27 Peak Build Rating 10 | 6 10 9 Average Rating 8 | 4 8 8 On Entrance 5 | . 6 9 Avg Prop Armor Cover (%) . | . . . Naked Turns . | . . . Heaviest Build 90 | 12 89 90 Greatest Support 40 | 40 40 40 Greatest Overweight (x) 2 | . 2 2 Average Overweight (x) 1 | . . 2 Largest Inventory Capacity 25 | 8 25 25 Average Capacity 19 | 7 13 25 Most Carried 10 | 3 10 10 Average Carried 8 | 1 8 9 Final Capacity 25 | 8 25 25 Final Carried 10 | 3 10 10 Class Distribution -------------------- 100% | Mutant Dominant Class ---------------- Mutant | -10/Materials Mutant | -10/Subcaves Resources | -11 -10 -10 ----------- Run | Yrd Mat Sub Matter Collected 486 | 89 319 78 Remotely . | . . . Salvage Created 600 | 34 513 53 Parts 51 | 5 37 9 Haulers Intercepted 2 | . 2 . Recyclers Shooed . | . . . Parts Field Recycled . | . . . Retrieved Matter . | . . . Parts Self-Destructed 1 | . . 1 Prevented . | . . . Parts Restored . | . . . Kills | -11 -10 -10 ------- Run | Yrd Mat Sub Combat Hostiles Destroyed 14 | . 10 4 Guns 6 | . 6 . AOE 8 | . 4 4 Classes Destroyed 8 | 1 4 3 Tunneler 2 | 2 . . Hauler 2 | . 2 . Operator 3 | . 3 . Watcher 1 | . 1 . Swarmer 3 | . . 3 Grunt 10 | . 10 . Subdweller 1 | . . 1 Scientist 1 | . . 1 Best Kill Streak 3 | 2 3 3 Combat Bots Only 3 | . 3 3 Max Kills in Single Turn 3 | 1 2 3 Gunslinging . | . . . Exploded 2 | . 2 2 Melee . | . . . Uniques/NPCs Destroyed . | . . . Combat | -11 -10 -10 -------- Run | Yrd Mat Sub Hostile Shots Fired 72 | . 65 7 Missed 19 | . 19 . Hits 53 | . 46 7 Projectile 53 | . 46 7 Damage Taken 877 | . 715 162 Core 264 | . 212 52 Absorbed by Shields . | . . . Core Remaining (%) 100 | 100 . . Volleys Fired 49 | 3 42 4 Largest 2 | 2 2 2 Hottest 105 | 80 105 60 Shots Fired 94 | 6 82 6 Gun 82 | 6 76 . Cannon . | . . . Launcher 11 | . 5 6 Special 1 | . 1 . Kinetic 27 | . 27 . Thermal 56 | 6 50 . Explosive 11 | . 5 6 Electromagnetic . | . . . Robot Hit Streak 9 | 4 8 9 Robot Miss Streak 5 | . 5 . Penetration Max . | . . . Secondary Targets 1 | . 1 . Max Gunslinging Chain 1 | . 1 . Shots Hit Robots 50 | 4 45 1 Core Hits 33 | 2 25 6 Critical Kills . | . . . Critical Parts Destroyed . | . . . Critical Strikes 1 | . 1 . Burn 1 | . 1 . Melee Attacks . | . . . Impact . | . . . Slashing . | . . . Piercing . | . . . Sneak Attacks . | . . . Combat Hostiles . | . . . Follow-up Attacks . | . . . Damage Inflicted 1162 | 44 761 357 Guns 615 | 44 571 . Cannons . | . . . Explosions 547 | . 190 357 Melee . | . . . Ramming . | . . . Kinetic 77 | . 77 . Thermal 538 | 44 494 . Explosive 547 | . 190 357 Electromagnetic . | . . . Impact . | . . . Slashing . | . . . Piercing . | . . . Highest Corruption 1 | . 1 1 Average Corruption 1 | . 1 1 Corruption Purged . | . . . Corruption Blocked . | . . . Effects 28 | . 12 16 Message Errors 8 | . 5 3 Matter Fused 4 | . 1 3 Heat Flow Errors 4 | . 1 3 Energy Discharges 4 | . 1 3 Data Loss (minor) 6 | . 2 4 Data Loss (major) 1 | . 1 . Weapon Failures 1 | . 1 . Overload Shots . | . . . Overflow Damage 9 | . . 9 Projectiles . | . . . Explosions 9 | . . 9 Melee . | . . . Knockbacks . | . . . Impact . | . . . Kinetic . | . . . Secondary . | . . . Self-Inflicted Damage 124 | . 54 70 Shots 4 | . 2 2 Rammed . | . . . Targets Rammed . | . . . Kicked . | . . . Crushed . | . . . Highest Temperature 283 | 36 283 231 Average Temperature 81 | 18 81 109 Received Heat Transfer 342 | . 324 18 Effects 2 | . 2 . Interference 2 | . 2 . Siege Activations . | . . . Martial Activations . | . . . Shielding Activations . | . . . Robots Disrupted . | . . . Combat Hostiles . | . . . Robots Corrupted . | . . . Combat Hostiles . | . . . Parts Fried . | . . . Impact Corruptions . | . . . Robots Melted . | . . . Combat Hostiles . | . . . Parts Melted 2 | 1 1 . Heat Transferred 1325 | 100 1225 . Parts Sabotaged . | . . . Parts Stolen . | . . . Parts Stripped . | . . . Power Chain Reactions . | . . . Alert | -11 -10 -10 ------- Run | Yrd Mat Sub Maximum Alert Level . | . . . Low Security (%) 100 | 100 100 . Level 1 . | . . . Level 2 . | . . . Level 3 . | . . . Level 4 . | . . . Level 5 . | . . . High Security . | . . . Max Security . | . . . Peak Influence 157 | 5 157 . Initial . | . . . Average 58 | . 63 . Influence Increases 539 | 10 414 115 Destroy 0b10 Robot/C 260 | . 200 60 Destroy 0b10 Robot/NC 40 | 10 30 . Destroy Leader 86 | . 76 10 Disable Machine 15 | . 15 . Destroy Structure 33 | . 33 . Partial Spotted 15 | . 15 . Lose Combat Pursuer 90 | . 45 45 Influence Decreases 539 | 10 402 127 Entered New Map 7 | . . 7 Time Decay 512 | 10 382 120 Lost Part 20 | . 20 . Squads Dispatched 4 | . 4 . Investigation . | . . . Extermination . | . . . Reinforcement 4 | . 4 . Assault . | . . . Garrison . | . . . Intercept . | . . . Searches Triggered . | . . . Construction Impeded . | . . . Haulers Reinforced . | . . . Active Scanning Responses . | . . . Cargo Convoy Interrupts . | . . . Stealth | -11 -10 -10 --------- Run | Yrd Mat Sub Distress Signals 2 | . 2 . Communications Jammed . | . . . Distress Signals . | . . . Times Spotted 30 | . 26 4 Peak Tracking Total 4 | . 4 3 Tactical Retreats 2 | . 1 1 Traps | -11 -10 -10 ------- Run | Yrd Mat Sub Traps Triggered 3 | . 3 . Indirectly . | . . . Trap Hack Attempts . | . . . Triggered . | . . . Disarmed . | . . . Reprogrammed . | . . . Reused . | . . . Traps Extracted . | . . . Installed . | . . . Triggered . | . . . Machines | -11 -10 -10 ---------- Run | Yrd Mat Sub Machines Disabled 1 | . 1 . Max in Single Turn 1 | . 1 . Machines Repaired . | . . . Machines Dismantled . | . . . Machines Sabotaged . | . . . Overloaded Fab Kills . | . . . Hacking | -11 -10 -10 --------- Run | Yrd Mat Sub Machines Accessed 1 | . 1 . Terminals . | . . . Fabricators . | . . . Repair Stations . | . . . Recycling Units 1 | . 1 . Scanalyzers . | . . . Garrison Access . | . . . Total Hacks 1 | . 1 . Successful . | . . . Failed 1 | . 1 . Catastrophic 1 | . 1 . Database Lockouts . | . . . Manual . | . . . Terminals . | . . . Fabricators . | . . . Repair Stations . | . . . Recycling Units 1 | . 1 . Scanalyzers . | . . . Garrison Access . | . . . Terminal Hacks . | . . . Fabricator Hacks . | . . . Repair Station Hacks . | . . . Recycling Unit Hacks . | . . . Scanalyzer . | . . . Garrison Access Hacks . | . . . Unauthorized Hacks . | . . . Terminals . | . . . Fabricators . | . . . Repair Stations . | . . . Recycling Units . | . . . Scanalyzers . | . . . Garrison Access . | . . . Data Cores Recovered . | . . . Used . | . . . Hacking Detections 1 | . 1 . Full Trace Events . | . . . Feedback Events . | . . . Feedback Blocked . | . . . Robot Schematics Acquired . | . . . Robots Built . | . . . Authchips . | . . . Time . | . . . Total Robot Build Rating . | . . . Part Schematics Acquired . | . . . Parts Built . | . . . Authchips . | . . . Time . | . . . Total Part Build Rating . | . . . Part Studies Acquired . | . . . Parts Repaired . | . . . Time . | . . . Parts Recycled . | . . . Recycled Matter . | . . . Retrieved Matter . | . . . Retrieved Components . | . . . Parts Scanalyzed . | . . . Part Schematics Acquired . | . . . Parts Damaged . | . . . Bothacking | -11 -10 -10 ------------ Run | Yrd Mat Sub Used RIF Installer . | . . . Robots Hacked . | . . . Non-combat . | . . . Combat . | . . . Robot Hacks Applied . | . . . Relay Couplers Released . | . . . Fabnet Peak Effective % . | . . . Robots Rewired . | . . . Allies Hacked . | . . . Hacks Repelled . | . . . Allies | -11 -10 -10 -------- Run | Yrd Mat Sub Total Allies . | . . . Largest Group . | . . . Highest-Rated Group . | . . . Highest-Rated Ally . | . . . Total Orders . | . . . Ally Attacks . | . . . Total Damage . | . . . Kills . | . . . Allies Corrupted . | . . . Allies Melted . | . . . Intel | -11 -10 -10 ------- Run | Yrd Mat Sub Active Infowar (turns) . | . . . Robot Analysis Total . | . . . Derelict Logs Recovered . | . . . Drone Launches . | . . . Drone Recoveries . | . . . Exploration | -11 -10 -10 ------------- Run | Yrd Mat Sub Turns Passed 2392 | 83 1044 1265 Spaces Moved 876 | 41 448 387 Core 2 | 2 . . Treads 874 | 39 448 387 Legs . | . . . Wheels . | . . . Hover . | . . . Flight . | . . . Fastest Speed 50 | 50 160 320 Average Speed 240 | 154 180 320 Slowest Speed 320 | 160 320 320 Overloaded Moves . | . . . Propulsion Burnouts . | . . . Robots Hopped . | . . . Potential Cave-ins . | . . . Cave-ins Triggered . | . . . Exploration Rate (%) 35 | 4 76 27 Regions Visited 2 Branch Regions 1 Pre-discovered Areas . | . . . Known Exits Taken 1 | . 1 . Unknown Exits Taken 1 | 1 . . Scrap Searched . | . . . Spaces Dug . | . . . Terrain Destroyed 67 | . 41 26 Melee . | . . . Projectile . | . . . AOE 67 | . 41 26 Terrain Rammed . | . . . Walls Destroyed . | . . . Machines Disabled . | . . . Actions | -11 -10 -10 --------- Run | Yrd Mat Sub Total 1066 | 52 605 409 Wait 103 | . 89 14 Move 874 | 40 447 387 Hop . | . . . Pick Up 14 | 3 10 1 Fast Attach 8 | 6 2 . Attach 3 | . 2 1 Detach . | . . . Swap 9 | . 8 1 Drop 6 | . 5 1 Fire 49 | 3 42 4 Melee . | . . . Ram . | . . . Kick . | . . . Crush . | . . . Escape Stasis . | . . . Rewire . | . . . Trap . | . . . Miscellaneous . | . . . Route ------- -11/Scrapyard -10/Materials (discovered 2 exits: [*Mat] / *Sub) -10/Subcaves History --------- Turn | Location | Event 33 | -11/Scrapyard | Discovered new exit (range 16) 84 | -11/Scrapyard | Entered Materials 309 | -10/Materials | Build established: Mutant 470 | -10/Materials | Core integrity fell below 50% 555 | -10/Materials | Discovered new exit (range 16) 966 | -10/Materials | Core integrity fell below 20% 995 | -10/Materials | Discovered new exit (range 6) 1125 | -10/Materials | Identified exit to Subcaves 1128 | -10/Materials | Entered Subcaves 1129 | -10/Subcaves | Approached by a straggling Scientist 1266 | -10/Subcaves | Shifting Twisted Machinery released Humpback 1341 | -10/Subcaves | Shifting Twisted Machinery released Flamer 1967 | -10/Subcaves | Shifting Twisted Machinery released Flamer 1975 | -10/Subcaves | Shifting Twisted Machinery released Sub. Monowheel 2383 | -10/Subcaves | Disturbed a concealed Subdweller 2393 | -10/Subcaves | Destroyed self with Grenade Launcher Last Messages --------------- Acquired 11 matter. Acquired 8 matter. System corrupted: Component data lost. Acquired 15 matter. System corrupted: Matter fused (-8). XE8TPD |ROIQ|M%